[Event "Chessity Nationale Pupillendag 2018 - Groep F"]
[Site "Meppel, Netherlands"]
[Date "2018.06.23"]
[Round "4.4"]
[White "Grooten, Tommy"]
[Black "Jakhari, Ansh"]
[Result "1-0"]
[TimeControl "15 min + 10 sec"]
[WhiteElo "1408"]
[BlackElo "1293"]

1. e4 {[%clk 00:15:19]} c5 {[%clk 00:15:18]} {[%emt 00:00:02]} 2. Nf3 {[%clk
00:15:27]} {[%emt 00:00:01]} d6 {[%clk 00:15:28]} 3. d4 {[%clk 00:15:36]}
{[%emt 00:00:01]} cxd4 {[%clk 00:15:37]} 4. Nxd4 {[%clk 00:15:45]} {[%emt
00:00:01]} Nf6 {[%clk 00:15:46]} {[%emt 00:00:01]} 5. Nc3 {[%emt 00:00:03]} a6
6. f4 {[%clk 00:15:53]} {[%emt 00:00:09]} e6 {[%clk 00:15:46]} {[%emt
00:00:20]} 7. Be3 {[%clk 00:15:45]} {[%emt 00:00:18]} Qc7 {[%clk 00:15:54]}
{[%emt 00:00:03]} 8. Qd2 {[%clk 00:15:24]} {[%emt 00:00:31]} Nbd7 {[%clk
00:15:49]} {[%emt 00:00:15]} 9. O-O-O {[%clk 00:14:18]} {[%emt 00:01:16]} Be7
{[%clk 00:15:38]} {[%emt 00:00:20]} 10. Be2 {[%clk 00:13:18]} {[%emt 00:01:11]}
b5 {[%clk 00:15:25]} {[%emt 00:00:23]} 11. Bf3 {[%clk 00:13:22]} {[%emt
00:00:06]} Bb7 {[%clk 00:15:34]} 12. g4 {[%clk 00:11:59]} {[%emt 00:01:33]} Nc5
{[%clk 00:15:14]} {[%emt 00:00:30]} 13. Qg2 {[%clk 00:11:37]} {[%emt 00:00:32]}
O-O-O {[%emt 00:00:54]} 14. g5 {[%clk 00:11:11]} {[%emt 00:00:34]} Nfd7 {[%clk
00:13:49]} {[%emt 00:00:53]} 15. f5 {[%clk 00:10:48]} {[%emt 00:00:33]} exf5
{[%clk 00:12:18]} {[%emt 00:01:40]} 16. Nxf5 {[%clk 00:10:56]} {[%emt
00:00:02]} Bf8 {[%clk 00:11:37]} {[%emt 00:00:51]} 17. Nd5 {[%clk 00:09:52]}
{[%emt 00:01:15]} Bxd5 {[%clk 00:11:43]} {[%emt 00:00:04]} 18. Rxd5 {[%clk
00:10:00]} {[%emt 00:00:01]} Nb6 {[%clk 00:11:48]} {[%emt 00:00:06]} 19. Rhd1
{[%clk 00:08:46]} {[%emt 00:01:24]} Nxd5 {[%clk 00:11:49]} {[%emt 00:00:08]} 20.
Rxd5 {[%clk 00:08:55]} {[%emt 00:00:02]} g6 {[%clk 00:11:51]} {[%emt 00:00:08]}
21. Nd4 {[%clk 00:07:32]} {[%emt 00:01:33]} Bg7 {[%clk 00:11:32]} {[%emt
00:00:30]} 22. Bg4+ {[%clk 00:07:22]} {[%emt 00:00:19]} Kb7 {[%clk 00:11:27]}
{[%emt 00:00:14]} 23. e5 {[%clk 00:06:37]} {[%emt 00:00:55]} Kb8 {[%clk
00:10:55]} {[%emt 00:00:42]} 24. exd6 {[%clk 00:05:46]} {[%emt 00:01:01]} Qb7
{[%clk 00:10:24]} {[%emt 00:00:40]} 25. Bf3 {[%clk 00:05:41]} {[%emt 00:00:15]}
Qc8 {[%clk 00:09:53]} {[%emt 00:00:42]} 26. Rxc5 {[%clk 00:05:03]} {[%emt
00:00:48]} Qd7 {[%clk 00:09:25]} {[%emt 00:00:37]} 27. Nc6+ {[%clk 00:05:10]}
{[%emt 00:00:04]} Kc8 {[%clk 00:09:19]} {[%emt 00:00:16]} 28. Ne5+ {[%clk
00:05:12]} {[%emt 00:00:08]} Kb8 {[%clk 00:09:28]} {[%emt 00:00:01]} 29. Nxd7+
{[%clk 00:05:21]} {[%emt 00:00:01]} Rxd7 {[%clk 00:09:37]} {[%emt 00:00:01]} 30.
Qg4 {[%clk 00:04:59]} {[%emt 00:00:31]} Rhd8 {[%clk 00:09:33]} {[%emt
00:00:13]} 31. Bf4 {[%clk 00:04:50]} {[%emt 00:00:19]} Bf8 {[%clk 00:09:36]}
{[%emt 00:00:07]} 32. Rc7 {[%clk 00:04:39]} {[%emt 00:00:22]} Bxd6 {[%clk
00:09:29]} {[%emt 00:00:17]} 33. Rxd7 {[%clk 00:04:33]} {[%emt 00:00:15]} Bxf4+
{[%clk 00:09:37]} {[%emt 00:00:02]} 34. Qxf4+ {[%clk 00:04:42]} {[%emt
00:00:01]} Kc8 {[%clk 00:09:45]} {[%emt 00:00:02]} 35. Qc7# {[%emt 00:00:02]}
1-0

[Event "Chessity Nationale Pupillendag 2018 - Groep F"]
[Site "Meppel, Netherlands"]
[Date "2018.06.23"]
[Round "4.5"]
[White "Song, Fred"]
[Black "Van Gaal, Hugo"]
[Result "0-1"]
[TimeControl "15 min + 10 sec"]
[WhiteElo "580"]
[BlackElo "851"]

1. e4 {[%clk 00:15:17]} {[%emt 00:00:03]} e5 {[%clk 00:15:28]} {[%emt
00:00:02]} 2. Nf3 {[%clk 00:15:27]} Nc6 {[%clk 00:15:34]} {[%emt 00:00:04]} 3.
Nc3 {[%clk 00:15:36]} {[%emt 00:00:02]} Nf6 {[%clk 00:15:41]} {[%emt 00:00:03]}
4. Bb5 {[%clk 00:15:45]} {[%emt 00:00:01]} Bc5 {[%clk 00:15:44]} {[%emt
00:00:06]} 5. Nxe5 {[%clk 00:15:53]} {[%emt 00:00:02]} Nxe5 {[%clk 00:15:51]}
{[%emt 00:00:03]} 6. d4 Bxd4 {[%clk 00:15:27]} 7. Qxd4 {[%clk 00:16:09]} {[%emt
00:00:01]} Neg4 {[%clk 00:15:33]} {[%emt 00:00:04]} 8. Qd1 {[%clk 00:15:58]}
{[%emt 00:00:23]} O-O {[%clk 00:15:27]} {[%emt 00:00:17]} 9. O-O {[%clk
00:15:57]} {[%emt 00:00:11]} Qe8 {[%clk 00:15:09]} {[%emt 00:00:27]} 10. f3
{[%clk 00:16:05]} {[%emt 00:00:02]} Ne5 {[%clk 00:14:53]} {[%emt 00:00:26]} 11.
Re1 {[%clk 00:16:00]} {[%emt 00:00:15]} c6 {[%clk 00:14:45]} {[%emt 00:00:19]}
12. Ba4 {[%clk 00:16:08]} {[%emt 00:00:01]} Nh5 {[%clk 00:14:22]} {[%emt
00:00:32]} 13. Rf1 {[%clk 00:15:36]} {[%emt 00:00:43]} f5 {[%clk 00:13:57]}
{[%emt 00:00:34]} 14. exf5 {[%clk 00:15:39]} {[%emt 00:00:07]} Rxf5 {[%clk
00:14:03]} {[%emt 00:00:04]} 15. Bb3+ {[%clk 00:15:13]} {[%emt 00:00:36]} Kf8
{[%clk 00:13:49]} {[%emt 00:00:17]} 16. Qd6+ {[%clk 00:15:19]} {[%emt
00:00:11]} Qe7 {[%clk 00:13:38]} {[%emt 00:00:21]} 17. Qd1 {[%clk 00:15:16]}
{[%emt 00:00:10]} Qe8 {[%clk 00:13:29]} {[%emt 00:00:22]} 18. Bg5 {[%clk
00:15:20]} {[%emt 00:00:07]} Rxg5 {[%clk 00:13:12]} {[%emt 00:00:26]} 19. Qd6+
{[%clk 00:15:28]} {[%emt 00:00:03]} Qe7 {[%clk 00:13:13]} {[%emt 00:00:07]} 20.
Qd2 {[%clk 00:15:36]} {[%emt 00:00:04]} Rg6 {[%clk 00:13:06]} {[%emt 00:00:13]}
21. g4 {[%clk 00:15:43]} {[%emt 00:00:06]} Nf6 {[%clk 00:12:28]} {[%emt
00:00:45]} 22. Ne4 {[%clk 00:15:48]} {[%emt 00:00:08]} Nxe4 {[%clk 00:12:01]}
{[%emt 00:00:36]} 23. fxe4+ {[%clk 00:15:57]} {[%emt 00:00:02]} Rf6 {[%clk
00:12:06]} {[%emt 00:00:03]} 24. Rxf6+ {[%clk 00:16:00]} {[%emt 00:00:08]} Qxf6
{[%clk 00:12:11]} {[%emt 00:00:05]} 25. Qb4+ {[%clk 00:16:06]} {[%emt
00:00:04]} Ke8 {[%emt 00:00:10]} 26. Qd4 {[%emt 00:00:11]} Nf3+ {[%clk
00:11:50]} {[%emt 00:00:09]} 27. Kg2 {[%clk 00:16:14]} {[%emt 00:00:03]} Nxd4
{[%clk 00:11:57]} {[%emt 00:00:03]} 28. c3 {[%clk 00:16:22]} {[%emt 00:00:02]}
Nxb3 {[%clk 00:12:04]} {[%emt 00:00:02]} 29. axb3 {[%emt 00:00:03]} d5 {[%clk
00:12:01]} {[%emt 00:00:12]} 30. exd5 {[%clk 00:16:40]} {[%emt 00:00:02]} cxd5
{[%clk 00:12:09]} 31. Re1+ {[%clk 00:16:48]} {[%emt 00:00:02]} Kf8 {[%clk
00:12:14]} {[%emt 00:00:05]} 32. Rf1 {[%clk 00:16:57]} {[%emt 00:00:01]} Qxf1+
{[%clk 00:12:14]} {[%emt 00:00:10]} 33. Kxf1 {[%clk 00:17:06]} Bxg4 {[%clk
00:12:20]} {[%emt 00:00:04]} 34. c4 {[%clk 00:17:11]} {[%emt 00:00:05]} dxc4
{[%clk 00:12:27]} {[%emt 00:00:03]} 35. bxc4 {[%clk 00:17:20]} {[%emt
00:00:02]} Rc8 {[%clk 00:12:32]} {[%emt 00:00:05]} 36. b3 {[%clk 00:17:29]} h5
{[%emt 00:00:04]} 37. Kf2 h4 {[%emt 00:00:05]} 38. Kg2 {[%emt 00:00:02]} h3+
{[%clk 00:12:26]} {[%emt 00:00:03]} 39. Kg3 {[%clk 00:17:38]} Be6 {[%emt
00:00:06]} 40. Kf3 {[%emt 00:00:05]} Bxc4 {[%clk 00:12:15]} {[%emt 00:00:11]}
41. bxc4 {[%clk 00:17:46]} {[%emt 00:00:01]} Rxc4 {[%clk 00:12:22]} {[%emt
00:00:03]} 42. Kg3 {[%clk 00:17:54]} {[%emt 00:00:02]} a5 {[%emt 00:00:02]} 43.
Kf2 {[%emt 00:00:01]} a4 {[%emt 00:00:02]} 44. Ke3 {[%emt 00:00:01]} a3 {[%emt
00:00:02]} 45. Kd3 Rc8 {[%clk 00:12:20]} {[%emt 00:00:02]} 46. Kd4 {[%clk
00:18:01]} {[%emt 00:00:04]} a2 {[%clk 00:12:26]} {[%emt 00:00:02]} 47. Kd5
a1=Q {[%emt 00:00:06]} 48. Kd6 {[%clk 00:18:05]} {[%emt 00:00:02]} Qf6+ {[%emt
00:00:10]} 49. Kd7 {[%emt 00:00:02]} Qc6# {[%clk 00:12:07]} {[%emt 00:00:16]}
0-1

[Event "Chessity Nationale Pupillendag 2018 - Groep F"]
[Site "Meppel, Netherlands"]
[Date "2018.06.23"]
[Round "4.6"]
[White "Tang, Dean"]
[Black "Geldof, Wouter"]
[Result "1-0"]
[TimeControl "15 min + 10 sec"]
[WhiteElo "563"]
[BlackElo "701"]

1. e4 {[%clk 00:15:19]} {[%emt 00:02:55]} e5 {[%clk 00:15:19]} {[%emt
00:00:01]} 2. d4 {[%clk 00:15:28]} d5 {[%clk 00:15:24]} {[%emt 00:00:05]} 3.
dxe5 {[%clk 00:15:36]} {[%emt 00:00:02]} dxe4 {[%clk 00:15:32]} {[%emt
00:00:02]} 4. Qxd8+ {[%clk 00:15:45]} {[%emt 00:00:01]} Kxd8 {[%clk 00:15:40]}
{[%emt 00:00:03]} 5. Nf3 {[%clk 00:15:52]} {[%emt 00:00:02]} Nc6 {[%emt
00:00:05]} 6. Ng5 {[%emt 00:00:02]} Nxe5 {[%clk 00:15:39]} {[%emt 00:00:04]} 7.
Nc3 {[%clk 00:16:00]} {[%emt 00:00:03]} f6 {[%clk 00:15:39]} {[%emt 00:00:09]}
8. Ngxe4 {[%clk 00:16:09]} {[%emt 00:00:02]} Bf5 {[%clk 00:15:44]} {[%emt
00:00:04]} 9. Bf4 {[%clk 00:16:21]} {[%emt 00:00:29]} Bc5 {[%clk 00:15:32]}
{[%emt 00:00:12]} 10. Nxc5 {[%clk 00:16:25]} {[%emt 00:00:06]} b6 {[%clk
00:15:23]} {[%emt 00:00:17]} 11. N5e4 {[%clk 00:16:32]} {[%emt 00:00:04]} Nc4
{[%clk 00:15:27]} {[%emt 00:00:06]} 12. Bxc4 {[%clk 00:16:39]} {[%emt
00:00:03]} Ne7 {[%clk 00:15:25]} {[%emt 00:00:12]} 13. O-O-O+ {[%clk 00:16:47]}
{[%emt 00:00:03]} Kc8 {[%clk 00:15:27]} {[%emt 00:00:07]} 14. Rhe1 {[%clk
00:16:39]} {[%emt 00:00:18]} Nc6 {[%clk 00:15:28]} {[%emt 00:00:08]} 15. Bd5
{[%clk 00:16:47]} {[%emt 00:00:03]} Bd7 {[%clk 00:15:15]} {[%emt 00:00:23]} 16.
Bc4 {[%clk 00:16:48]} {[%emt 00:00:10]} Nb4 {[%clk 00:15:21]} {[%emt 00:00:04]}
17. Rd4 {[%clk 00:16:49]} {[%emt 00:00:08]} Re8 {[%clk 00:15:12]} {[%emt
00:00:18]} 18. Nd6+ {[%clk 00:16:50]} {[%emt 00:00:11]} cxd6 {[%clk 00:15:12]}
{[%emt 00:00:10]} 19. Rxe8+ {[%emt 00:00:03]} Bxe8 {[%clk 00:15:17]} {[%emt
00:00:03]} 20. Bxd6 {[%clk 00:17:06]} {[%emt 00:00:03]} Nc6 {[%clk 00:15:19]}
{[%emt 00:00:07]} 21. Re4 {[%clk 00:17:12]} {[%emt 00:00:04]} Bg6 {[%clk
00:15:24]} {[%emt 00:00:06]} 22. Re6 {[%clk 00:17:07]} {[%emt 00:00:15]} Nd4
{[%clk 00:15:10]} {[%emt 00:00:24]} 23. Bd5 {[%clk 00:17:03]} {[%emt 00:00:13]}
Nxe6 {[%clk 00:15:04]} {[%emt 00:00:15]} 24. Bxa8 {[%clk 00:17:11]} {[%emt
00:00:03]} Nd4 {[%clk 00:15:06]} {[%emt 00:00:07]} 25. Be4 {[%clk 00:17:05]}
{[%emt 00:00:16]} Bh5 {[%clk 00:15:10]} {[%emt 00:00:06]} 26. Bxh7 {[%clk
00:17:12]} {[%emt 00:00:03]} Kd7 {[%clk 00:15:15]} {[%emt 00:00:06]} 27. Bf4
{[%clk 00:17:17]} {[%emt 00:00:05]} b5 {[%clk 00:15:19]} {[%emt 00:00:07]} 28.
Nd5 {[%clk 00:17:20]} {[%emt 00:00:07]} Ne2+ {[%clk 00:15:23]} {[%emt
00:00:04]} 29. Kd2 {[%clk 00:17:28]} {[%emt 00:00:05]} Nd4 {[%clk 00:15:19]}
{[%emt 00:00:14]} 30. Be3 {[%clk 00:17:34]} {[%emt 00:00:04]} Ne2 {[%clk
00:15:17]} {[%emt 00:00:11]} 31. Bxa7 {[%clk 00:17:41]} {[%emt 00:00:03]} Kd6
{[%clk 00:15:26]} {[%emt 00:00:02]} 32. Nb4 {[%clk 00:17:45]} {[%emt 00:00:06]}
Nf4 {[%clk 00:15:28]} {[%emt 00:00:08]} 33. g3 {[%clk 00:17:50]} {[%emt
00:00:04]} Nh3 {[%clk 00:15:29]} {[%emt 00:00:09]} 34. Bb8+ {[%clk 00:17:56]}
{[%emt 00:00:04]} Kc5 {[%clk 00:15:35]} {[%emt 00:00:03]} 35. Nd3+ {[%clk
00:18:03]} {[%emt 00:00:03]} Kd4 {[%clk 00:15:41]} {[%emt 00:00:03]} 36. Bf5
{[%clk 00:18:05]} {[%emt 00:00:10]} Ng5 {[%clk 00:15:39]} {[%emt 00:00:11]} 37.
Ba7+ {[%clk 00:18:06]} {[%emt 00:00:10]} Kc4 {[%clk 00:15:39]} {[%emt
00:00:09]} 38. b3+ {[%clk 00:18:08]} {[%emt 00:00:08]} Kd5 {[%clk 00:15:44]}
{[%emt 00:00:05]} 39. a4 {[%clk 00:18:15]} {[%emt 00:00:03]} Nf3+ {[%clk
00:15:46]} {[%emt 00:00:09]} 40. Ke3 {[%clk 00:18:17]} {[%emt 00:00:07]} Kc6
{[%clk 00:15:39]} {[%emt 00:00:16]} 41. Be4+ {[%clk 00:18:24]} {[%emt
00:00:04]} Kc7 {[%clk 00:15:24]} {[%emt 00:00:10]} 42. Bxf3 {[%clk 00:18:32]}
{[%emt 00:00:09]} Bg6 {[%clk 00:15:39]} {[%emt 00:00:04]} 43. axb5 {[%clk
00:18:40]} {[%emt 00:00:02]} Bxd3 {[%clk 00:15:40]} {[%emt 00:00:08]} 44. cxd3
{[%clk 00:18:49]} {[%emt 00:00:02]} g6 {[%clk 00:15:39]} {[%emt 00:00:11]} 45.
b6+ {[%clk 00:18:58]} {[%emt 00:00:01]} Kc8 {[%clk 00:15:39]} {[%emt 00:00:10]}
46. b7+ {[%clk 00:19:07]} {[%emt 00:00:02]} Kd7 {[%clk 00:15:42]} {[%emt
00:00:06]} 47. b8=Q {[%clk 00:19:09]} {[%emt 00:00:05]} Ke6 {[%clk 00:15:48]}
{[%emt 00:00:07]} 48. Qb5 {[%clk 00:19:17]} {[%emt 00:00:02]} f5 {[%clk
00:15:53]} {[%emt 00:00:04]} 49. Qc5 {[%clk 00:19:29]} {[%emt 00:00:12]} g5
{[%clk 00:16:02]} {[%emt 00:00:07]} 50. g4 {[%clk 00:19:37]} {[%emt 00:00:03]}
fxg4 {[%clk 00:16:10]} {[%emt 00:00:02]} 51. Bxg4+ {[%clk 00:19:46]} {[%emt
00:00:02]} Kf7 {[%clk 00:16:00]} {[%emt 00:00:20]} 52. Qd6 {[%clk 00:19:45]}
{[%emt 00:00:10]} Ke8 {[%clk 00:15:54]} {[%emt 00:00:15]} 53. Qc7 {[%clk
00:19:54]} {[%emt 00:00:02]} Kf8 {[%clk 00:15:56]} {[%emt 00:00:07]} 54. b4
{[%clk 00:20:03]} {[%emt 00:00:02]} Ke8 {[%clk 00:16:00]} {[%emt 00:00:05]} 55.
b5 {[%clk 00:20:12]} {[%emt 00:00:03]} Kf8 {[%clk 00:16:09]} 56. b6 {[%clk
00:20:21]} Ke8 {[%clk 00:16:18]} {[%emt 00:00:02]} 57. b7 {[%clk 00:20:29]} Kf8
{[%clk 00:16:27]} 58. b8=R# {[%clk 00:20:35]} {[%emt 00:00:04]} 1-0

[Event "Chessity Nationale Pupillendag 2018 - Groep F"]
[Site "Meppel, Netherlands"]
[Date "2018.06.23"]
[Round "5.1"]
[White "De Vreugt Pezo, Max"]
[Black "Kazarjan, Gachatur"]
[Result "0-1"]
[TimeControl "15 min + 10 sec"]
[WhiteElo "922"]
[BlackElo "1020"]

1. e4 {[%clk 00:15:19]} e6 {[%clk 00:15:19]} {[%emt 00:00:02]} 2. Nf3 {[%clk
00:15:27]} {[%emt 00:00:02]} d5 {[%clk 00:15:28]} {[%emt 00:00:02]} 3. e5
{[%clk 00:15:31]} {[%emt 00:00:06]} Nd7 {[%clk 00:15:21]} {[%emt 00:00:16]} 4.
d4 {[%clk 00:15:39]} {[%emt 00:00:02]} c5 {[%clk 00:15:28]} {[%emt 00:00:03]} 5.
Be3 {[%clk 00:15:46]} {[%emt 00:00:02]} Qb6 {[%clk 00:15:36]} {[%emt 00:00:03]}
6. dxc5 {[%clk 00:15:16]} {[%emt 00:00:40]} Bxc5 {[%emt 00:00:07]} 7. Bxc5
{[%clk 00:15:17]} {[%emt 00:00:07]} Qxc5 {[%clk 00:15:44]} {[%emt 00:00:05]} 8.
Nc3 {[%clk 00:15:13]} {[%emt 00:00:15]} Ne7 {[%clk 00:15:32]} {[%emt 00:00:22]}
9. Be2 {[%clk 00:15:06]} {[%emt 00:00:17]} O-O {[%clk 00:15:29]} {[%emt
00:00:13]} 10. O-O {[%clk 00:15:13]} {[%emt 00:00:03]} Ng6 {[%clk 00:15:38]}
{[%emt 00:00:02]} 11. Qd2 {[%clk 00:14:57]} {[%emt 00:00:25]} Ndxe5 {[%clk
00:15:23]} {[%emt 00:00:25]} 12. Nxe5 {[%clk 00:14:49]} {[%emt 00:00:19]} Nxe5
{[%clk 00:15:29]} {[%emt 00:00:03]} 13. Rfe1 {[%clk 00:14:32]} {[%emt
00:00:26]} Nc6 {[%clk 00:15:29]} {[%emt 00:00:09]} 14. Rad1 {[%clk 00:14:02]}
{[%emt 00:00:41]} b6 {[%clk 00:15:15]} {[%emt 00:00:24]} 15. Bf3 {[%clk
00:13:35]} {[%emt 00:00:37]} Bb7 {[%clk 00:15:11]} {[%emt 00:00:13]} 16. h3
{[%clk 00:12:57]} {[%emt 00:00:48]} Rad8 {[%clk 00:14:55]} {[%emt 00:00:26]} 17.
Na4 {[%clk 00:12:25]} {[%emt 00:00:42]} Qa5 {[%clk 00:14:27]} {[%emt 00:00:39]}
18. Qxa5 {[%clk 00:12:27]} {[%emt 00:00:07]} Nxa5 {[%clk 00:14:35]} {[%emt
00:00:02]} 19. Rd2 {[%clk 00:12:17]} {[%emt 00:00:20]} Nc4 {[%clk 00:14:32]}
{[%emt 00:00:13]} 20. Rd3 {[%clk 00:12:17]} {[%emt 00:00:09]} Ba6 {[%clk
00:14:28]} {[%emt 00:00:15]} 21. Rd4 {[%clk 00:12:07]} {[%emt 00:00:19]} Nd6
{[%clk 00:14:13]} {[%emt 00:00:27]} 22. Red1 {[%clk 00:12:02]} {[%emt
00:00:14]} Nf5 {[%clk 00:14:14]} {[%emt 00:00:10]} 23. R4d2 {[%clk 00:11:57]}
{[%emt 00:00:14]} Rd7 {[%clk 00:13:40]} {[%emt 00:00:45]} 24. b3 {[%clk
00:11:51]} {[%emt 00:00:16]} Rfd8 {[%clk 00:13:43]} {[%emt 00:00:06]} 25. c3
{[%clk 00:11:58]} {[%emt 00:00:03]} Nh4 {[%clk 03:59:46]} {[%emt 00:00:27]} 26.
Bg4 {[%clk 00:11:57]} {[%emt 00:00:11]} f5 {[%clk 00:13:16]} {[%emt 00:00:19]}
27. Be2 {[%clk 00:11:55]} {[%emt 00:00:12]} Bxe2 {[%clk 00:12:30]} {[%emt
00:00:57]} 28. Rxe2 {[%clk 00:12:02]} {[%emt 00:00:03]} Re8 {[%clk 00:12:38]}
{[%emt 00:00:02]} 29. Nb2 {[%clk 00:11:47]} {[%emt 00:00:25]} e5 {[%clk
00:12:41]} {[%emt 00:00:06]} 30. f3 {[%clk 00:11:49]} {[%emt 00:00:09]} e4
{[%clk 00:12:30]} {[%emt 00:00:21]} 31. fxe4 {[%clk 00:11:56]} {[%emt
00:00:03]} fxe4 {[%clk 00:12:39]} {[%emt 00:00:01]} 32. Kf2 {[%clk 00:11:48]}
{[%emt 00:00:15]} Rf8+ {[%clk 00:12:41]} {[%emt 00:00:11]} 33. Kg1 {[%clk
00:11:32]} {[%emt 00:00:25]} Re8 {[%clk 00:12:42]} {[%emt 00:00:09]} 34. Rd4
{[%clk 00:11:13]} {[%emt 00:00:29]} Re6 {[%clk 00:12:31]} {[%emt 00:00:21]} 35.
Nd1 {[%clk 00:11:16]} {[%emt 00:00:07]} Nf5 {[%clk 00:12:19]} {[%emt 00:00:22]}
36. Rdd2 {[%clk 00:11:15]} {[%emt 00:00:10]} d4 {[%clk 00:11:40]} {[%emt
00:00:51]} 37. cxd4 {[%clk 00:11:20]} {[%emt 00:00:05]} Nxd4 {[%clk 00:11:47]}
{[%emt 00:00:02]} 38. Re3 {[%clk 00:11:20]} {[%emt 00:00:10]} Nf3+ {[%clk
00:11:42]} {[%emt 00:00:15]} 39. gxf3 {[%clk 00:11:06]} {[%emt 00:00:24]} Rxd2
{[%clk 00:11:49]} {[%emt 00:00:04]} 40. Nf2 {[%clk 00:11:01]} {[%emt 00:00:14]}
Rxa2 {[%clk 00:11:36]} {[%emt 00:00:23]} 41. fxe4 {[%clk 00:11:03]} {[%emt
00:00:08]} Ra5 {[%clk 00:11:24]} {[%emt 00:00:22]} 42. Ng4 {[%clk 00:11:08]}
{[%emt 00:00:05]} Rg5 {[%clk 00:11:30]} {[%emt 00:00:05]} 43. e5 {[%clk
00:11:12]} {[%emt 00:00:07]} h5 {[%clk 00:11:36]} {[%emt 00:00:03]} 44. Kg2
{[%clk 00:10:50]} {[%emt 00:00:31]} hxg4 {[%clk 00:11:42]} {[%emt 00:00:05]} 45.
hxg4 {[%clk 00:10:51]} {[%emt 00:00:09]} Rexe5 {[%clk 00:11:50]} {[%emt
00:00:03]} 46. Rxe5 {[%clk 00:10:58]} {[%emt 00:00:03]} Rxe5 {[%clk 00:11:57]}
{[%emt 00:00:02]} 47. Kf3 {[%clk 00:11:07]} {[%emt 00:00:02]} Rc5 {[%clk
00:12:02]} {[%emt 00:00:04]} 48. Kf4 {[%clk 00:11:13]} {[%emt 00:00:04]} a5
{[%clk 00:12:10]} {[%emt 00:00:01]} 49. g5 {[%clk 00:11:22]} Rxg5 {[%clk
00:12:14]} {[%emt 00:00:06]} 50. Kxg5 {[%clk 00:11:30]} {[%emt 00:00:02]} b5
{[%clk 00:12:23]} {[%emt 00:00:01]} 51. Kf4 {[%clk 00:11:38]} {[%emt 00:00:01]}
Kf7 {[%clk 00:12:31]} {[%emt 00:00:02]} 52. Ke3 {[%clk 00:11:47]} {[%emt
00:00:01]} Kf6 {[%clk 00:12:39]} {[%emt 00:00:02]} 53. Kd2 {[%clk 00:11:56]}
Kf5 {[%clk 00:12:48]} {[%emt 00:00:02]} 54. Kc2 {[%clk 00:12:05]} Kf4 {[%clk
00:12:58]} 55. Kd2 {[%clk 00:12:13]} {[%emt 00:00:02]} Kf3 {[%clk 00:13:05]}
{[%emt 00:00:02]} 56. Ke1 {[%clk 00:12:22]} {[%emt 00:00:01]} a4 {[%clk
00:13:13]} {[%emt 00:00:03]} 57. bxa4 {[%clk 00:12:31]} bxa4 {[%clk 00:13:22]}
{[%emt 00:00:01]} 58. Kd2 {[%clk 00:12:39]} {[%emt 00:00:01]} g5 {[%clk
00:13:30]} {[%emt 00:00:02]} 59. Ke1 {[%clk 00:12:42]} {[%emt 00:00:07]} g4
{[%clk 00:13:37]} {[%emt 00:00:03]} 60. Kf1 {[%clk 00:12:51]} a3 {[%clk
00:13:46]} {[%emt 00:00:02]} 61. Kg1 {[%clk 00:13:00]} {[%emt 00:00:01]} a2
{[%clk 00:13:54]} 62. Kh2 {[%clk 00:13:07]} {[%emt 00:00:03]} g3 {[%clk
00:13:34]} {[%emt 00:00:31]} 63. Kh3 {[%clk 00:13:07]} {[%emt 00:00:10]} a1=Q
{[%clk 00:13:39]} {[%emt 00:00:05]} 64. Kh4 {[%clk 00:13:13]} {[%emt 00:00:03]}
0-1